[Event "Titled Tuesday Blitz July 18 Late 2023"]
[White "Rastbod, Ali"]
[Black "Lima, Kleyton Alcantara"]
[WhiteFideId "12567477"]
[BlackFideId "22718397"]
[WhiteElo "2692"]
[BlackElo "2431"]
[Result "1-0"]
[Round "2"]
[TimeControl "180+2"]
[Date "2023.07.18"]
[WhiteClock "0:00:24"]
[BlackClock "0:00:39"]
[Board "68"]

1. Nf3 {[%clk 0:02:59]}  c5 {[%clk 0:02:58]} 2. b3 {[%clk 0:02:59]}  Nf6 {[%clk 0:02:56]} 3. Bb2 {[%clk 0:02:59]}  g6 {[%clk 0:02:57]} 4. c4 {[%clk 0:02:57]}  Bg7 {[%clk 0:02:57]} 5. g3 {[%clk 0:02:58]}  b6 {[%clk 0:02:57]} 6. Bg2 {[%clk 0:02:58]}  Bb7 {[%clk 0:02:58]} 7. O-O {[%clk 0:02:59]}  O-O {[%clk 0:02:58]} 8. d4 {[%clk 0:03:00]}  cxd4 {[%clk 0:02:51]} 9. Qxd4 {[%clk 0:03:00]}  d6 {[%clk 0:02:48]} 10. Nc3 {[%clk 0:02:58]}  Nbd7 {[%clk 0:02:48]} 11. Rac1 {[%clk 0:02:57]}  Rc8 {[%clk 0:02:47]} 12. Rfd1 {[%clk 0:02:56]}  a6 {[%clk 0:02:46]} 13. Qh4 {[%clk 0:02:55]}  Nc5 {[%clk 0:02:41]} 14. Nd5 {[%clk 0:02:48]}  Bxd5 {[%clk 0:02:29]} 15. cxd5 {[%clk 0:02:46]}  h6 {[%clk 0:02:24]} 16. Qf4 {[%clk 0:02:36]}  Qd7 {[%clk 0:02:22]} 17. Nd4 {[%clk 0:02:22]}  e5 {[%clk 0:02:04]} 18. dxe6 {[%clk 0:02:21]}  Nxe6 {[%clk 0:02:03]} 19. Qd2 {[%clk 0:02:18]}  Nxd4 {[%clk 0:01:58]} 20. Bxd4 {[%clk 0:02:19]}  Rxc1 {[%clk 0:01:53]} 21. Rxc1 {[%clk 0:02:20]}  Rc8 {[%clk 0:01:53]} 22. Rxc8+ {[%clk 0:02:14]}  Qxc8 {[%clk 0:01:52]} 23. Bxb6 {[%clk 0:02:14]}  d5 {[%clk 0:01:47]} 24. Bd4 {[%clk 0:02:09]}  Qc7 {[%clk 0:01:36]} 25. b4 {[%clk 0:01:58]}  h5 {[%clk 0:01:35]} 26. a4 {[%clk 0:01:53]}  Qc4 {[%clk 0:01:31]} 27. Bxf6 {[%clk 0:01:44]}  Bxf6 {[%clk 0:01:31]} 28. Bxd5 {[%clk 0:01:44]}  Qc7 {[%clk 0:01:25]} 29. Kg2 {[%clk 0:01:36]}  Qd7 {[%clk 0:01:15]} 30. Qd3 {[%clk 0:01:32]}  Kg7 {[%clk 0:01:10]} 31. a5 {[%clk 0:01:26]}  Qd6 {[%clk 0:01:08]} 32. b5 {[%clk 0:01:22]}  axb5 {[%clk 0:01:07]} 33. Qxb5 {[%clk 0:01:23]}  h4 {[%clk 0:01:07]} 34. a6 {[%clk 0:01:21]}  Bd4 {[%clk 0:01:08]} 35. e3 {[%clk 0:01:13]}  Bb6 {[%clk 0:01:01]} 36. Qc4 {[%clk 0:01:08]}  Qd7 {[%clk 0:00:53]} 37. gxh4 {[%clk 0:01:02]}  Ba7 {[%clk 0:00:51]} 38. Bf3 {[%clk 0:00:44]}  Qe7 {[%clk 0:00:50]} 39. Qg4 {[%clk 0:00:37]}  Kh7 {[%clk 0:00:46]} 40. h5 {[%clk 0:00:37]}  Bb8 {[%clk 0:00:45]} 41. hxg6+ {[%clk 0:00:36]}  fxg6 {[%clk 0:00:46]} 42. Be4 {[%clk 0:00:32]}  Qd6 {[%clk 0:00:46]} 43. Qxg6+ {[%clk 0:00:27]}  Qxg6+ {[%clk 0:00:46]} 44. Bxg6+ {[%clk 0:00:28]}  Kxg6 {[%clk 0:00:47]} 45. h4 {[%clk 0:00:29]}  Kh5 {[%clk 0:00:46]} 46. Kh3 {[%clk 0:00:29]}  Ba7 {[%clk 0:00:42]} 47. Kg3 {[%clk 0:00:29]}  Bb8+ {[%clk 0:00:42]} 48. f4 {[%clk 0:00:29]}  Ba7 {[%clk 0:00:42]} 49. e4 {[%clk 0:00:25]}  Bb8 {[%clk 0:00:39]} 50. e5 {[%clk 0:00:24]} 1-0


[Site "https://www.chess.com"]

[Event "Titled Tuesday Blitz July 18 Late 2023"]
[White "Vetoshko, Volodymyr"]
[Black "Uzcategui Rodriguez, Alejandro"]
[WhiteFideId "14122480"]
[BlackFideId "3903400"]
[WhiteElo "2683"]
[BlackElo "2426"]
[Result "1-0"]
[Round "2"]
[TimeControl "180+2"]
[Date "2023.07.18"]
[WhiteClock "0:00:22"]
[BlackClock "0:00:11"]
[Board "70"]

1. b3 {[%clk 0:03:00]}  Nf6 {[%clk 0:02:58]} 2. Bb2 {[%clk 0:03:00]}  e6 {[%clk 0:02:58]} 3. g3 {[%clk 0:02:59]}  d5 {[%clk 0:02:54]} 4. Bg2 {[%clk 0:02:59]}  c5 {[%clk 0:02:53]} 5. Nf3 {[%clk 0:02:59]}  Nc6 {[%clk 0:02:49]} 6. O-O {[%clk 0:02:59]}  Be7 {[%clk 0:02:49]} 7. d4 {[%clk 0:02:54]}  cxd4 {[%clk 0:02:47]} 8. Nxd4 {[%clk 0:02:54]}  O-O {[%clk 0:02:43]} 9. Nxc6 {[%clk 0:02:41]}  bxc6 {[%clk 0:02:43]} 10. c4 {[%clk 0:02:41]}  Qb6 {[%clk 0:02:19]} 11. Qc2 {[%clk 0:02:37]}  a5 {[%clk 0:02:18]} 12. Nc3 {[%clk 0:02:34]}  Ba6 {[%clk 0:01:41]} 13. Na4 {[%clk 0:02:30]}  Qa7 {[%clk 0:01:38]} 14. Rfd1 {[%clk 0:02:25]}  Rfd8 {[%clk 0:01:31]} 15. e3 {[%clk 0:02:22]}  Rac8 {[%clk 0:01:30]} 16. c5 {[%clk 0:02:05]}  Nd7 {[%clk 0:01:28]} 17. Rac1 {[%clk 0:01:56]}  e5 {[%clk 0:01:23]} 18. f4 {[%clk 0:01:46]}  Bb5 {[%clk 0:01:15]} 19. fxe5 {[%clk 0:01:15]}  Bxa4 {[%clk 0:01:09]} 20. bxa4 {[%clk 0:01:16]}  Bxc5 {[%clk 0:00:46]} 21. Kh1 {[%clk 0:01:16]}  Bxe3 {[%clk 0:00:45]} 22. Rb1 {[%clk 0:01:16]}  Nf8 {[%clk 0:00:43]} 23. Rf1 {[%clk 0:01:03]}  Ne6 {[%clk 0:00:40]} 24. Rbd1 {[%clk 0:00:59]}  Bd4 {[%clk 0:00:17]} 25. Bxd4 {[%clk 0:00:30]}  Nxd4 {[%clk 0:00:18]} 26. Qf2 {[%clk 0:00:31]}  c5 {[%clk 0:00:18]} 27. Rb1 {[%clk 0:00:26]}  Qd7 {[%clk 0:00:16]} 28. Rb6 {[%clk 0:00:24]}  Ne6 {[%clk 0:00:15]} 29. Rd6 {[%clk 0:00:23]}  Qxa4 {[%clk 0:00:11]} 30. Qxf7+ {[%clk 0:00:22]} 1-0


[Site "https://www.chess.com"]

[Event "Titled Tuesday Blitz July 18 Late 2023"]
[White "Olsen, Filip Boe"]
[Black "Wu, Sibo"]
[WhiteFideId "1440640"]
[BlackFideId "8606048"]
[WhiteElo "2676"]
[BlackElo "2409"]
[Result "0-1"]
[Round "2"]
[TimeControl "180+2"]
[Date "2023.07.18"]
[WhiteClock "0:00:04"]
[BlackClock "0:00:29"]
[Board "72"]

1. c4 {[%clk 0:03:00]}  c6 {[%clk 0:02:59]} 2. g3 {[%clk 0:02:57]}  d5 {[%clk 0:02:59]} 3. Nf3 {[%clk 0:02:58]}  Nf6 {[%clk 0:03:00]} 4. Bg2 {[%clk 0:02:58]}  Bf5 {[%clk 0:03:01]} 5. O-O {[%clk 0:02:58]}  h5 {[%clk 0:02:58]} 6. Qb3 {[%clk 0:02:57]}  Qc8 {[%clk 0:02:50]} 7. h4 {[%clk 0:02:47]}  e6 {[%clk 0:02:48]} 8. d3 {[%clk 0:02:46]}  Bd6 {[%clk 0:02:48]} 9. Bg5 {[%clk 0:02:44]}  Nbd7 {[%clk 0:02:47]} 10. Nbd2 {[%clk 0:02:42]}  O-O {[%clk 0:02:42]} 11. Rac1 {[%clk 0:02:41]}  Rb8 {[%clk 0:02:37]} 12. Rfe1 {[%clk 0:02:36]}  Ng4 {[%clk 0:02:30]} 13. cxd5 {[%clk 0:02:33]}  exd5 {[%clk 0:02:29]} 14. e4 {[%clk 0:02:29]}  Nc5 {[%clk 0:02:16]} 15. Rxc5 {[%clk 0:02:11]}  Bxc5 {[%clk 0:02:14]} 16. d4 {[%clk 0:02:11]}  dxe4 {[%clk 0:02:10]} 17. dxc5 {[%clk 0:02:05]}  exf3 {[%clk 0:02:10]} 18. Nxf3 {[%clk 0:02:06]}  Re8 {[%clk 0:02:08]} 19. Rd1 {[%clk 0:01:50]}  Qe6 {[%clk 0:02:08]} 20. Qxe6 {[%clk 0:01:44]}  Bxe6 {[%clk 0:02:07]} 21. Bf4 {[%clk 0:01:40]}  Rbd8 {[%clk 0:02:06]} 22. Bd6 {[%clk 0:01:40]}  Bxa2 {[%clk 0:01:59]} 23. Nd4 {[%clk 0:01:31]}  Bc4 {[%clk 0:01:43]} 24. b3 {[%clk 0:01:26]}  Bd5 {[%clk 0:01:34]} 25. Bxd5 {[%clk 0:01:21]}  cxd5 {[%clk 0:01:34]} 26. Nf5 {[%clk 0:01:20]}  Re2 {[%clk 0:01:26]} 27. Rf1 {[%clk 0:01:04]}  Rde8 {[%clk 0:01:22]} 28. Bf4 {[%clk 0:00:59]}  Rb2 {[%clk 0:01:11]} 29. f3 {[%clk 0:00:55]}  Nf6 {[%clk 0:01:08]} 30. Nd6 {[%clk 0:00:53]}  Ree2 {[%clk 0:01:06]} 31. Rd1 {[%clk 0:00:47]}  Rxb3 {[%clk 0:01:04]} 32. Nxb7 {[%clk 0:00:16]}  Rxb7 {[%clk 0:01:02]} 33. c6 {[%clk 0:00:17]}  Rbb2 {[%clk 0:00:58]} 34. c7 {[%clk 0:00:17]}  Rbc2 {[%clk 0:00:54]} 35. Rb1 {[%clk 0:00:16]}  Kh7 {[%clk 0:00:37]} 36. Kf1 {[%clk 0:00:17]}  Rf2+ {[%clk 0:00:35]} 37. Ke1 {[%clk 0:00:16]}  Rh2 {[%clk 0:00:34]} 38. Kd1 {[%clk 0:00:06]}  Rcg2 {[%clk 0:00:30]} 39. Bd2 {[%clk 0:00:05]}  Rxd2+ {[%clk 0:00:29]} 40. Ke1 {[%clk 0:00:05]}  Rc2 {[%clk 0:00:29]} 41. Kd1 {[%clk 0:00:04]}  Rxc7 {[%clk 0:00:29]} 0-1


[Site "https://www.chess.com"]

[Event "Titled Tuesday Blitz July 18 Late 2023"]
[White "Garcia Cuenca, Victor"]
[Black "Adewumi, Tanitoluwa"]
[WhiteFideId "2250829"]
[BlackFideId "30966396"]
[WhiteElo "2398"]
[BlackElo "2674"]
[Result "1-0"]
[Round "2"]
[TimeControl "180+2"]
[Date "2023.07.18"]
[WhiteClock "0:00:36"]
[BlackClock "0:01:00"]
[Board "73"]

1. Nf3 {[%clk 0:02:59]}  Nf6 {[%clk 0:02:52]} 2. e3 {[%clk 0:02:59]}  g6 {[%clk 0:02:51]} 3. d4 {[%clk 0:02:59]}  Bg7 {[%clk 0:02:52]} 4. Be2 {[%clk 0:02:57]}  O-O {[%clk 0:02:52]} 5. O-O {[%clk 0:02:57]}  d6 {[%clk 0:02:53]} 6. h3 {[%clk 0:02:58]}  Nc6 {[%clk 0:02:52]} 7. c4 {[%clk 0:02:58]}  e5 {[%clk 0:02:52]} 8. Nc3 {[%clk 0:02:58]}  Re8 {[%clk 0:02:51]} 9. b3 {[%clk 0:02:52]}  Bf5 {[%clk 0:02:46]} 10. Bb2 {[%clk 0:02:51]}  Ne4 {[%clk 0:02:45]} 11. Rc1 {[%clk 0:02:41]}  exd4 {[%clk 0:02:43]} 12. exd4 {[%clk 0:02:38]}  Bh6 {[%clk 0:02:43]} 13. Ra1 {[%clk 0:02:35]}  Bg7 {[%clk 0:02:33]} 14. Rc1 {[%clk 0:02:24]}  Qe7 {[%clk 0:02:17]} 15. Nd5 {[%clk 0:02:22]}  Qd8 {[%clk 0:02:14]} 16. b4 {[%clk 0:02:15]}  Be6 {[%clk 0:02:04]} 17. a3 {[%clk 0:01:40]}  Bxd5 {[%clk 0:02:00]} 18. cxd5 {[%clk 0:01:41]}  Ne7 {[%clk 0:02:01]} 19. Bc4 {[%clk 0:01:41]}  Nf6 {[%clk 0:02:00]} 20. Qb3 {[%clk 0:01:38]}  Qd7 {[%clk 0:01:56]} 21. a4 {[%clk 0:01:38]}  a6 {[%clk 0:01:49]} 22. b5 {[%clk 0:01:37]}  Qf5 {[%clk 0:01:46]} 23. g4 {[%clk 0:01:03]}  Qe4 {[%clk 0:01:37]} 24. Rce1 {[%clk 0:00:58]}  axb5 {[%clk 0:01:26]} 25. axb5 {[%clk 0:00:55]}  Qf4 {[%clk 0:01:19]} 26. Bc1 {[%clk 0:00:54]}  Nfxd5 {[%clk 0:01:05]} 27. Bxf4 {[%clk 0:00:52]}  Nxf4 {[%clk 0:01:04]} 28. Bxf7+ {[%clk 0:00:53]}  Kh8 {[%clk 0:01:05]} 29. Bxe8 {[%clk 0:00:53]}  Rxe8 {[%clk 0:01:00]} 30. Qf7 {[%clk 0:00:36]} 1-0


[Site "https://www.chess.com"]

[Event "Titled Tuesday Blitz July 18 Late 2023"]
[White "Bueno, Alfeu Junior Varela"]
[Black "Bjelobrk, Igor"]
[WhiteFideId "2108879"]
[BlackFideId "4300726"]
[WhiteElo "2398"]
[BlackElo "2667"]
[Result "1/2-1/2"]
[Round "2"]
[TimeControl "180+2"]
[Date "2023.07.18"]
[WhiteClock "0:00:51"]
[BlackClock "0:00:32"]
[Board "74"]

1. e4 {[%clk 0:02:55]}  e6 {[%clk 0:02:59]} 2. d4 {[%clk 0:02:55]}  d5 {[%clk 0:02:58]} 3. Nd2 {[%clk 0:02:55]}  c5 {[%clk 0:02:57]} 4. exd5 {[%clk 0:02:55]}  exd5 {[%clk 0:02:57]} 5. Bb5+ {[%clk 0:02:54]}  Nc6 {[%clk 0:02:53]} 6. Ngf3 {[%clk 0:02:52]}  cxd4 {[%clk 0:02:50]} 7. O-O {[%clk 0:02:51]}  Bd6 {[%clk 0:02:48]} 8. Nxd4 {[%clk 0:02:44]}  Bxh2+ {[%clk 0:02:46]} 9. Kxh2 {[%clk 0:02:39]}  Qh4+ {[%clk 0:02:45]} 10. Kg1 {[%clk 0:02:38]}  Qxd4 {[%clk 0:02:46]} 11. Qe2+ {[%clk 0:02:21]}  Ne7 {[%clk 0:02:43]} 12. Nf3 {[%clk 0:02:12]}  Qe4 {[%clk 0:02:37]} 13. Qd1 {[%clk 0:01:47]}  O-O {[%clk 0:02:27]} 14. Bd3 {[%clk 0:01:40]}  Qg4 {[%clk 0:02:17]} 15. Re1 {[%clk 0:01:36]}  Bf5 {[%clk 0:02:14]} 16. Bg5 {[%clk 0:01:25]}  Be4 {[%clk 0:01:13]} 17. Bxe7 {[%clk 0:01:16]}  Nxe7 {[%clk 0:01:14]} 18. Bxe4 {[%clk 0:01:16]}  dxe4 {[%clk 0:01:14]} 19. Ne5 {[%clk 0:01:17]}  Qf5 {[%clk 0:01:05]} 20. Qd4 {[%clk 0:01:12]}  Rfe8 {[%clk 0:00:50]} 21. Qxe4 {[%clk 0:00:53]}  Qxe4 {[%clk 0:00:47]} 22. Rxe4 {[%clk 0:00:54]}  Nc6 {[%clk 0:00:35]} 23. Rae1 {[%clk 0:00:52]}  Nxe5 {[%clk 0:00:33]} 24. Rxe5 {[%clk 0:00:53]}  Rxe5 {[%clk 0:00:34]} 25. Rxe5 {[%clk 0:00:54]}  Kf8 {[%clk 0:00:34]} 26. Rc5 {[%clk 0:00:51]}  Re8 {[%clk 0:00:31]} 27. Rc7 {[%clk 0:00:51]}  Re7 {[%clk 0:00:31]} 28. Rc8+ {[%clk 0:00:50]}  Re8 {[%clk 0:00:31]} 29. Rc7 {[%clk 0:00:50]}  Re7 {[%clk 0:00:32]} 30. Rc8+ {[%clk 0:00:51]}  Re8 {[%clk 0:00:32]} 31. Rc7 {[%clk 0:00:51]} 1/2-1/2


[Site "https://www.chess.com"]

[Event "Titled Tuesday Blitz July 18 Late 2023"]
[White "EsmeraldasAnderson03"]
[Black "Amburgy, Ryan"]
[BlackFideId "30924820"]
[WhiteElo "2385"]
[BlackElo "2661"]
[Result "0-1"]
[Round "2"]
[TimeControl "180+2"]
[Date "2023.07.18"]
[WhiteClock "0:00:00"]
[BlackClock "0:00:34"]
[Board "76"]

1. d4 {[%clk 0:03:00]}  Nf6 {[%clk 0:02:59]} 2. Nf3 {[%clk 0:02:59]}  d5 {[%clk 0:02:59]} 3. c4 {[%clk 0:02:48]}  e6 {[%clk 0:03:00]} 4. cxd5 {[%clk 0:02:47]}  exd5 {[%clk 0:02:59]} 5. Nc3 {[%clk 0:02:48]}  c6 {[%clk 0:03:00]} 6. Bg5 {[%clk 0:02:48]}  Bf5 {[%clk 0:02:59]} 7. e3 {[%clk 0:02:44]}  Be7 {[%clk 0:02:58]} 8. Bd3 {[%clk 0:02:41]}  Bxd3 {[%clk 0:02:58]} 9. Qxd3 {[%clk 0:02:42]}  O-O {[%clk 0:02:57]} 10. O-O {[%clk 0:02:42]}  Nbd7 {[%clk 0:02:56]} 11. Rab1 {[%clk 0:02:41]}  a5 {[%clk 0:02:52]} 12. Rfc1 {[%clk 0:02:24]}  Re8 {[%clk 0:02:37]} 13. a3 {[%clk 0:02:14]}  Bd6 {[%clk 0:02:25]} 14. Qc2 {[%clk 0:02:00]}  h6 {[%clk 0:02:14]} 15. Bh4 {[%clk 0:01:58]}  Qe7 {[%clk 0:02:04]} 16. Qb3 {[%clk 0:01:38]}  b5 {[%clk 0:01:55]} 17. Ne2 {[%clk 0:01:30]}  Rec8 {[%clk 0:01:53]} 18. Rc2 {[%clk 0:01:20]}  Nb6 {[%clk 0:01:49]} 19. Qd3 {[%clk 0:01:15]}  Nc4 {[%clk 0:01:44]} 20. Nd2 {[%clk 0:01:13]}  Qe6 {[%clk 0:01:32]} 21. Bg3 {[%clk 0:00:55]}  Ne4 {[%clk 0:01:23]} 22. Nxe4 {[%clk 0:00:53]}  dxe4 {[%clk 0:01:23]} 23. Qd1 {[%clk 0:00:47]}  Be7 {[%clk 0:01:15]} 24. d5 {[%clk 0:00:37]}  Qxd5 {[%clk 0:01:03]} 25. Qxd5 {[%clk 0:00:37]}  cxd5 {[%clk 0:01:04]} 26. Nc3 {[%clk 0:00:37]}  Rc5 {[%clk 0:01:01]} 27. Rd1 {[%clk 0:00:34]}  Nxb2 {[%clk 0:00:57]} 28. Rxb2 {[%clk 0:00:30]}  Rxc3 {[%clk 0:00:57]} 29. Rxb5 {[%clk 0:00:27]}  Bxa3 {[%clk 0:00:54]} 30. h3 {[%clk 0:00:19]}  a4 {[%clk 0:00:51]} 31. Be5 {[%clk 0:00:19]}  Rc2 {[%clk 0:00:45]} 32. Rdxd5 {[%clk 0:00:19]}  Be7 {[%clk 0:00:42]} 33. Rd7 {[%clk 0:00:16]}  Rc5 {[%clk 0:00:34]} 34. Rxc5 {[%clk 0:00:03]}  Bxc5 {[%clk 0:00:35]} 35. Bd4 {[%clk 0:00:03]}  Bxd4 {[%clk 0:00:32]} 36. Rxd4 {[%clk 0:00:04]}  a3 {[%clk 0:00:33]} 37. Rd1 {[%clk 0:00:05]}  a2 {[%clk 0:00:33]} 38. Ra1 {[%clk 0:00:05]}  Rb8 {[%clk 0:00:34]} 39. Kf1 {[%clk 0:00:00]}  Rb1+ {[%clk 0:00:34]} 0-1


[Site "https://www.chess.com"]

[Event "Titled Tuesday Blitz July 18 Late 2023"]
[White "Bogaudinov, Rushan"]
[Black "Karttunen, Mika"]
[WhiteFideId "4129288"]
[BlackFideId "502081"]
[WhiteElo "2367"]
[BlackElo "2652"]
[Result "0-1"]
[Round "2"]
[TimeControl "180+2"]
[Date "2023.07.18"]
[WhiteClock "0:00:12"]
[BlackClock "0:00:17"]
[Board "78"]

1. d4 {[%clk 0:03:00]}  Nf6 {[%clk 0:02:55]} 2. Nf3 {[%clk 0:03:00]}  g6 {[%clk 0:02:54]} 3. g3 {[%clk 0:02:59]}  Bg7 {[%clk 0:02:54]} 4. Bg2 {[%clk 0:03:00]}  O-O {[%clk 0:02:54]} 5. O-O {[%clk 0:03:00]}  d6 {[%clk 0:02:55]} 6. c4 {[%clk 0:02:59]}  c6 {[%clk 0:02:55]} 7. Nc3 {[%clk 0:02:59]}  Bf5 {[%clk 0:02:55]} 8. Re1 {[%clk 0:02:57]}  Ne4 {[%clk 0:02:54]} 9. Qb3 {[%clk 0:02:48]}  Qb6 {[%clk 0:02:49]} 10. e3 {[%clk 0:02:43]}  Qxb3 {[%clk 0:02:38]} 11. axb3 {[%clk 0:02:43]}  Nxc3 {[%clk 0:02:37]} 12. bxc3 {[%clk 0:02:44]}  Be4 {[%clk 0:02:36]} 13. b4 {[%clk 0:02:38]}  Nd7 {[%clk 0:02:29]} 14. Nd2 {[%clk 0:02:33]}  Bxg2 {[%clk 0:02:27]} 15. Kxg2 {[%clk 0:02:34]}  c5 {[%clk 0:02:21]} 16. bxc5 {[%clk 0:02:23]}  dxc5 {[%clk 0:02:21]} 17. Ba3 {[%clk 0:02:24]}  Rfc8 {[%clk 0:02:19]} 18. Ne4 {[%clk 0:02:23]}  b6 {[%clk 0:01:48]} 19. Rac1 {[%clk 0:02:19]}  f5 {[%clk 0:01:45]} 20. Ng5 {[%clk 0:02:16]}  Bf6 {[%clk 0:01:31]} 21. Nf3 {[%clk 0:02:04]}  e5 {[%clk 0:01:14]} 22. h4 {[%clk 0:01:48]}  e4 {[%clk 0:01:10]} 23. Nd2 {[%clk 0:01:47]}  Rc7 {[%clk 0:00:48]} 24. f3 {[%clk 0:01:44]}  exf3+ {[%clk 0:00:46]} 25. Kxf3 {[%clk 0:01:45]}  Rac8 {[%clk 0:00:43]} 26. Rh1 {[%clk 0:01:37]}  h5 {[%clk 0:00:43]} 27. Rcd1 {[%clk 0:01:33]}  Bg7 {[%clk 0:00:41]} 28. Bb2 {[%clk 0:01:26]}  Nf6 {[%clk 0:00:39]} 29. Rhe1 {[%clk 0:01:21]}  Re7 {[%clk 0:00:32]} 30. Re2 {[%clk 0:01:04]}  Ne4 {[%clk 0:00:32]} 31. Nxe4 {[%clk 0:00:58]}  Rxe4 {[%clk 0:00:28]} 32. Ra1 {[%clk 0:00:56]}  a5 {[%clk 0:00:28]} 33. Rb1 {[%clk 0:00:47]}  cxd4 {[%clk 0:00:26]} 34. cxd4 {[%clk 0:00:40]}  Rxc4 {[%clk 0:00:26]} 35. Ba3 {[%clk 0:00:40]}  Rc3 {[%clk 0:00:26]} 36. Bc1 {[%clk 0:00:39]}  Bxd4 {[%clk 0:00:25]} 37. Bd2 {[%clk 0:00:36]}  Rd3 {[%clk 0:00:25]} 38. Rb5 {[%clk 0:00:34]}  Bxe3 {[%clk 0:00:25]} 39. Bxe3 {[%clk 0:00:33]}  a4 {[%clk 0:00:24]} 40. Rxb6 {[%clk 0:00:33]}  a3 {[%clk 0:00:25]} 41. Rxg6+ {[%clk 0:00:33]}  Kf7 {[%clk 0:00:24]} 42. Rg5 {[%clk 0:00:33]}  Ke6 {[%clk 0:00:24]} 43. Rxh5 {[%clk 0:00:33]}  Ra4 {[%clk 0:00:19]} 44. Rh6+ {[%clk 0:00:31]}  Kd5 {[%clk 0:00:19]} 45. Ra2 {[%clk 0:00:29]}  Re4 {[%clk 0:00:19]} 46. Re2 {[%clk 0:00:29]}  Ra4 {[%clk 0:00:19]} 47. Rh5 {[%clk 0:00:20]}  a2 {[%clk 0:00:19]} 48. Re1 {[%clk 0:00:20]}  a1=Q {[%clk 0:00:18]} 49. Rxf5+ {[%clk 0:00:19]}  Ke6 {[%clk 0:00:18]} 50. Rxa1 {[%clk 0:00:19]}  Rxa1 {[%clk 0:00:18]} 51. Rf4 {[%clk 0:00:18]}  Raa3 {[%clk 0:00:18]} 52. Re4+ {[%clk 0:00:18]}  Kf7 {[%clk 0:00:18]} 53. h5 {[%clk 0:00:18]}  Rd5 {[%clk 0:00:18]} 54. h6 {[%clk 0:00:18]}  Kg6 {[%clk 0:00:18]} 55. Re6+ {[%clk 0:00:18]}  Kf7 {[%clk 0:00:18]} 56. Re4 {[%clk 0:00:18]}  Rd6 {[%clk 0:00:17]} 57. g4 {[%clk 0:00:18]}  Rxh6 {[%clk 0:00:16]} 58. g5 {[%clk 0:00:17]}  Rh3+ {[%clk 0:00:17]} 59. Kg4 {[%clk 0:00:16]}  Rhxe3 {[%clk 0:00:17]} 60. Rf4+ {[%clk 0:00:16]}  Kg7 {[%clk 0:00:16]} 61. Rf6 {[%clk 0:00:17]}  Re4+ {[%clk 0:00:16]} 62. Kf5 {[%clk 0:00:17]}  Re7 {[%clk 0:00:16]} 63. Rd6 {[%clk 0:00:16]}  Rf7+ {[%clk 0:00:16]} 64. Kg4 {[%clk 0:00:16]}  Ra4+ {[%clk 0:00:16]} 65. Kh5 {[%clk 0:00:17]}  Re7 {[%clk 0:00:17]} 66. Rg6+ {[%clk 0:00:17]}  Kf7 {[%clk 0:00:17]} 67. Rf6+ {[%clk 0:00:17]}  Ke8 {[%clk 0:00:17]} 68. Kg6 {[%clk 0:00:17]}  Rae4 {[%clk 0:00:17]} 69. Rf4 {[%clk 0:00:12]}  Rxf4 {[%clk 0:00:17]} 0-1


[Site "https://www.chess.com"]

[Event "Titled Tuesday Blitz July 18 Late 2023"]
[White "Shapiro, Daniel"]
[Black "Mendez Fortes, Eduardo Jesus"]
[WhiteFideId "2001780"]
[BlackFideId "3502376"]
[WhiteElo "2356"]
[BlackElo "2644"]
[Result "0-1"]
[Round "2"]
[TimeControl "180+2"]
[Date "2023.07.18"]
[WhiteClock "0:00:00"]
[BlackClock "0:00:14"]
[Board "81"]

1. d4 {[%clk 0:03:00]}  Nf6 {[%clk 0:02:59]} 2. c4 {[%clk 0:03:00]}  e6 {[%clk 0:02:57]} 3. g3 {[%clk 0:03:00]}  d5 {[%clk 0:02:57]} 4. Nf3 {[%clk 0:02:59]}  dxc4 {[%clk 0:02:57]} 5. Bg2 {[%clk 0:02:59]}  a6 {[%clk 0:02:57]} 6. O-O {[%clk 0:02:58]}  Nc6 {[%clk 0:02:56]} 7. e3 {[%clk 0:02:52]}  Rb8 {[%clk 0:02:53]} 8. Qe2 {[%clk 0:02:48]}  b5 {[%clk 0:02:51]} 9. b3 {[%clk 0:02:41]}  cxb3 {[%clk 0:02:50]} 10. axb3 {[%clk 0:02:42]}  Bb7 {[%clk 0:02:49]} 11. Bb2 {[%clk 0:02:37]}  Nb4 {[%clk 0:02:48]} 12. Nbd2 {[%clk 0:02:30]}  Bd6 {[%clk 0:02:46]} 13. e4 {[%clk 0:02:28]}  Be7 {[%clk 0:02:46]} 14. Rfd1 {[%clk 0:02:03]}  O-O {[%clk 0:02:45]} 15. Rac1 {[%clk 0:01:58]}  Rc8 {[%clk 0:02:31]} 16. Ne5 {[%clk 0:01:52]}  Qd6 {[%clk 0:02:15]} 17. Nxf7 {[%clk 0:01:46]}  Rxf7 {[%clk 0:02:09]} 18. e5 {[%clk 0:01:47]}  Qb6 {[%clk 0:02:03]} 19. exf6 {[%clk 0:01:40]}  Bxf6 {[%clk 0:02:01]} 20. Bxb7 {[%clk 0:01:34]}  Qxb7 {[%clk 0:02:01]} 21. Ne4 {[%clk 0:01:28]}  Re8 {[%clk 0:01:50]} 22. Nc5 {[%clk 0:01:17]}  Qb6 {[%clk 0:01:47]} 23. Bc3 {[%clk 0:00:48]}  Nd5 {[%clk 0:01:46]} 24. Be1 {[%clk 0:00:48]}  Rfe7 {[%clk 0:01:36]} 25. Ra1 {[%clk 0:00:48]}  Ra8 {[%clk 0:01:28]} 26. b4 {[%clk 0:00:43]}  Qc6 {[%clk 0:01:15]} 27. Qe4 {[%clk 0:00:36]}  e5 {[%clk 0:01:00]} 28. dxe5 {[%clk 0:00:20]}  Rxe5 {[%clk 0:01:00]} 29. Qg2 {[%clk 0:00:16]}  Rxe1+ {[%clk 0:00:44]} 30. Rxe1 {[%clk 0:00:16]}  Bxa1 {[%clk 0:00:44]} 31. Rxa1 {[%clk 0:00:17]}  Nxb4 {[%clk 0:00:44]} 32. Qxc6 {[%clk 0:00:14]}  Nxc6 {[%clk 0:00:45]} 33. Rxa6 {[%clk 0:00:13]}  Rxa6 {[%clk 0:00:45]} 34. Nxa6 {[%clk 0:00:13]}  b4 {[%clk 0:00:42]} 35. Nxc7 {[%clk 0:00:13]}  b3 {[%clk 0:00:42]} 36. Nd5 {[%clk 0:00:14]}  Nd4 {[%clk 0:00:38]} 37. Kf1 {[%clk 0:00:13]}  Kf7 {[%clk 0:00:35]} 38. Nc3 {[%clk 0:00:12]}  Ke6 {[%clk 0:00:35]} 39. h4 {[%clk 0:00:11]}  Kf5 {[%clk 0:00:35]} 40. Ke1 {[%clk 0:00:11]}  Kg4 {[%clk 0:00:33]} 41. Kd2 {[%clk 0:00:12]}  Kf3 {[%clk 0:00:33]} 42. Kd3 {[%clk 0:00:12]}  Nf5 {[%clk 0:00:32]} 43. Nd1 {[%clk 0:00:10]}  h5 {[%clk 0:00:19]} 44. Kd2 {[%clk 0:00:10]}  Nh6 {[%clk 0:00:18]} 45. Kc3 {[%clk 0:00:08]}  Ng4 {[%clk 0:00:18]} 46. Kxb3 {[%clk 0:00:08]}  Nxf2 {[%clk 0:00:19]} 47. Nc3 {[%clk 0:00:07]}  Kxg3 {[%clk 0:00:19]} 48. Kc2 {[%clk 0:00:07]}  Kxh4 {[%clk 0:00:16]} 49. Kd2 {[%clk 0:00:07]}  Kg3 {[%clk 0:00:17]} 50. Ke2 {[%clk 0:00:08]}  Kg2 {[%clk 0:00:17]} 51. Nd5 {[%clk 0:00:06]}  g5 {[%clk 0:00:15]} 52. Nf6 {[%clk 0:00:06]}  h4 {[%clk 0:00:14]} 53. Nh5 {[%clk 0:00:00]}  h3 {[%clk 0:00:14]} 0-1


[Site "https://www.chess.com"]